[Event "Czech Extraliga 2024-25"]
[Site "Czechia"]
[Date "2024.11.03"]
[Round "2.4"]
[White "Neugebauer, Martin"]
[Black "Neuman, Petr"]
[Result "1-0"]
[ECO "B31"]
[WhiteElo "2525"]
[BlackElo "2426"]
[Annotator "TA"]
[PlyCount "127"]
[EventDate "2024.09.12"]
[EventType "team-tourn"]
[EventCountry "CZE"]
[SourceTitle "playchess.com"]
[Source "ChessBase"]
[SourceQuality "1"]
[TimeControl "40/5400+30:1800+30"]

{[%evp 54,127,8,11,0,8,4,0,0,-17,0,-47,0,-72,-83,-79,-79,-156,-148,-144,-121,-243,-190,-214,-228,-225,-229,-235,-236,-232,-243,-254,-215,-300,-245,-314,-312,-272,-253,-282,-258,-422,-389,-414,510,509,520,516,518,499,509,476,720,705,645,599,566,391,1632,1559,1454,0,789,0,922,0,0,0,847,8,8,8,29961,29962,29960,29961]} 1. e4 {[%emt 0:00:07]} c5 {[%emt 0:00:09]} 2. Nf3 {[%emt 0:00:22]} Nc6 {[%emt 0:00:05]} 3. Bb5 {[%emt 0:01:33]} g6 {[%emt 0:00:46]} 4. O-O {[%emt 0:00:27]} Bg7 {[%emt 0:00:04]} 5. Bxc6 {[%emt 0:00:46]} dxc6 {[%emt 0:00:04]} 6. d3 {[%emt 0:00:21]} Nf6 {[%emt 0:00:17]} 7. h3 {[%emt 0:00:27]} Nd7 {[%emt 0:00:05]} 8. Nc3 {[%emt 0:00:53]} e5 {[%emt 0:00:26]} 9. Be3 {[%emt 0:00:28]} b6 {[%emt 0:00:18]} 10. Qd2 {[%emt 0:02:25]} h6 {[%emt 0:00:25]} 11. Nh2 {[%emt 0:02:21]} Nf8 {[%emt 0:00:15]} 12. f4 {[%emt 0:03:39]} exf4 {[%emt 0:00:21]} 13. Bxf4 {[%emt 0:00:25]} Ne6 {[%emt 0:00:22]} 14. Be3 {[%emt 0:08:14]} Nd4 {[%emt 0:00:55]} 15. Rae1 {[%emt 0:05:39]} Be6 {[%emt 0:00:41]} 16. Nd1 {[%emt 0:04:47]} Qd7 {[%emt 0:03:55]} 17. c3 {[%emt 0:06:46]} Nb5 {[%emt 0:00:13]} 18. a4 {[%emt 0:00:36]} Nc7 {[%emt 0:01:59]} 19. Nf3 {[%emt 0:05:00]} O-O-O {[%emt 0:02:26]} 20. Nf2 {[%emt 0:02:00]} g5 {[%emt 0:03:17]} 21. d4 {[%emt 0:17:38]} Bc4 {[%emt 0:18:19]} 22. Nd3 {[%emt 0:00:17]} Qe6 {[%emt 0:00:07]} 23. Rf2 {[%emt 0:05:34]} f6 {[%emt 0:12:04]} 24. b4 {[%emt 0:14:01]} cxb4 {[%emt 0:08:43]} 25. Nb2 {[%emt 0:02:26]} b3 {[%emt 0:10:03]} 26. Nxc4 {[%emt 0:00:24]} Qxc4 {[%emt 0:00:06]} 27. Qb2 {[%emt 0:00:16]} f5 {[%emt 0:09:24]} 28. Nd2 {[%emt 0:01:54]} Qd3 {[%emt 0:00:14]} 29. Rxf5 {[%emt 0:07:15]} (29. Nxb3 fxe4 30. Rf7 Rd7 $17) 29... Nd5 $1 {[%emt 0:01:09]} 30. Rxd5 {[%emt 0:07:51]} cxd5 {[%emt 0:00:12]} 31. Qxb3 {[%emt 0:00:03]} Rhe8 {[%emt 0:02:20]} 32. a5 {[%emt 0:01:01]} (32. e5 $11 {might be stronger.}) 32... b5 {[%emt 0:00:32]} (32... Re6 $1 $15) 33. a6 {[%emt 0:00:31]} (33. Bf2 $11 {remains equal.}) 33... Re7 $17 {[%emt 0:01:08]} (33... dxe4 $2 34. Qf7 Rd7 35. Qxe8+ $18) 34. e5 {[%emt 0:00:31]} Rc7 {[%emt 0:00:07]} 35. Nb1 {[%emt 0:00:16]} ({Better is} 35. Nf1) 35... Bf8 $17 {[%emt 0:00:36]} 36. Qb2 {[%emt 0:00:44]} Rc6 {[%emt 0:07:23]} 37. Qa2 {[%emt 0:00:24]} (37. Bf2 $17) 37... Be7 {[%emt 0:02:23]} 38. Kh2 {[%emt 0:00:32]} h5 {[%emt 0:00:49]} 39. Bf2 {[%emt 0:00:32]} g4 {[%emt 0:00:22]} 40. Re3 {[%emt 0:00:27]} Qg6 {[%emt 0:04:48]} 41. h4 {[%emt 0:03:40]} Rxa6 {[%emt 0:02:37]} 42. Qb2 {[%emt 0:00:31]} Rf8 {[%emt 0:07:11]} 43. Re1 {[%emt 0:06:30]} Qd3 {[%emt 0:06:15]} 44. Bg3 {[%emt 0:02:08]} Rf1 {[%emt 0:09:44]} 45. Rxf1 {[%emt 0:01:08]} Qxf1 {[%emt 0:00:05]} 46. Nd2 {[%emt 0:00:19]} Qd3 $1 {[%emt 0:00:49]} 47. Qb3 $2 {[%emt 0:10:45]} (47. Nb3 {only move.}) 47... Qxd2 $19 {[%emt 0:06:44]} 48. Qxb5 {[%emt 0:00:27]} Rb6 $4 {[%emt 0:02:06][%mdl 8192]} (48... Re6 49. Qxd5 Qh6 50. Qa8+ Kd7 51. d5 $18 (51. Qxa7+ Ke8 $16)) (48... Qh6 $1 $19 {[%cal Rh6c6]} 49. Qxd5 Rc6) 49. Qe8+ $18 {[%emt 0:01:18]} Kb7 {[%emt 0:05:48]} 50. Qxe7+ {[%emt 0:00:18]} Ka6 {[%emt 0:00:03]} 51. Qa3+ {[%emt 0:01:27]} Kb7 {[%emt 0:00:01]} 52. Qa5 {[%emt 0:02:57]} Qe3 {[%emt 0:05:23]} (52... Qe2 $142 53. Qxd5+ Rc6 54. Qb3+ Kc8) 53. Qxd5+ $18 {[%emt 0:00:08]} Ka6 {[%emt 0:00:03]} 54. Qc4+ {[%emt 0:00:26]} Kb7 {[%emt 0:00:23]} 55. d5 {[%emt 0:00:16]} a5 {[%emt 0:00:37]} 56. d6 {[%emt 0:05:43]} ({Not} 56. e6 Rb1 57. Qc7+ (57. Qc6+ Ka7 $11) 57... Ka6 $11) 56... Rb1 {[%emt 0:00:37]} 57. Qf7+ $2 {[%emt 0:00:28]} ({Only move:} 57. Qd5+ $1 $18 Kb6 58. Qd4+ Qxd4 59. cxd4) 57... Ka6 $2 {[%emt 0:00:29][%mdl 8192]} (57... Kb6 $11 58. Bf2 (58. Qxh5 $2 Qg1#) 58... g3+ 59. Bxg3 Qg1+ 60. Kh3 Qh1+ 61. Bh2 Qd1) 58. Qc4+ {[%emt 0:00:23]} (58. Qxh5 $2 Qg1#) 58... Kb7 $1 {[%emt 0:00:19] [#]} 59. Qc7+ $2 {[%emt 0:00:10]} (59. Qd5+ $1 $18 Kb6 60. Qd4+ Qxd4 61. cxd4) 59... Ka6 $11 {[%emt 0:00:46]} 60. Qc4+ $2 {[%emt 0:00:35][%mdl 8192]} (60. Qc8+ $11 Ka7 61. Qc7+ Ka6 62. Qc4+ Kb6 63. Qd4+ (63. Qc7+ Ka6 $18) 63... Qxd4 64. cxd4) 60... Kb7 $1 $18 {[%emt 0:01:38] [#]} 61. Qd4 $2 {[%emt 0:00:48]} (61. Qd5+ $1 $18 Kb6 62. Qd4+ Qxd4 63. cxd4) 61... Qxd4 $11 {[%emt 0:00:56]} 62. cxd4 {[%emt 0:00:01]} Kc6 $2 {[%emt 0:00:23][%mdl 8192]} (62... Kc8 $11) 63. d5+ {[%emt 0:00:39]} Kxd5 {[%emt 0:00:35]} 64. d7 {[%emt 0:00:04]} 1-0

[Event "Czech Extraliga 2024-25"]
[Site "Czechia"]
[Date "2024.11.03"]
[Round "2.4"]
[White "Cernousek, Lukas"]
[Black "Cvek, Robert"]
[Result "0-1"]
[ECO "B36"]
[WhiteElo "2445"]
[BlackElo "2437"]
[Annotator "TA"]
[PlyCount "36"]
[EventDate "2024.09.12"]
[EventType "team-tourn"]
[EventCountry "CZE"]
[SourceTitle "playchess.com"]
[Source "ChessBase"]
[SourceQuality "1"]
[TimeControl "40/5400+30:1800+30"]

{[%evp 18,36,31,29,70,47,55,11,20,11,39,24,35,0,0,-49,-55,-160,-155,-381,-170]} 1. e4 {[%emt 1:31:00]} c5 {[%emt 0:01:40]} 2. Nf3 {[%emt 0:00:00]} Nc6 {[%emt 0:00:26]} 3. d4 {[%emt 0:00:00]} cxd4 {[%emt 0:00:04]} 4. Nxd4 {[%emt 0:00:00]} g6 {[%emt 0:01:21]} 5. c4 {[%emt 0:00:00]} Nf6 {[%emt 0:00:16]} 6. Nc3 {[%emt 0:00:00]} d6 {[%emt 0:00:19]} 7. f3 {[%emt 0:00:00]} Nxd4 {[%emt 0:00:07]} 8. Qxd4 {[%emt 0:00:00]} Bg7 {[%emt 0:00:07]} 9. Be3 {[%emt 0:00:00]} O-O {[%emt 0:00:05]} 10. Qd2 {[%emt 0:00:00]} a5 {[%emt 0:00:05][%cal Ba7a5,Ba5a4,Ba4a3][%mdl 32]} 11. Na4 {[%emt 0:00:00]} Nd7 {[%emt 0:01:37][%cal Od7c5]} 12. Bh6 {[%emt 0:00:00]} Bxh6 {[%emt 0:03:20] The position is equal.} 13. Qxh6 {[%emt 0:00:00]} Nc5 {[%emt 0:00:10]} 14. Nc3 {[%emt 0:00:00]} Be6 {[%emt 0:00:17]} 15. O-O-O {[%emt 0:00:00]} a4 {[%emt 0:01:02]} 16. h4 {[%emt 0:00:00]} (16. a3 $11 {is superior.}) 16... a3 $1 $15 {[%emt 0:01:53] Threatens to win with ...axb2+.} 17. b4 {[%emt 0:00:00] [#]} (17. h5 $15 axb2+ 18. Kb1) 17... Qb6 $1 $17 {[%emt 0:01:02]} 18. Nb5 $2 {[%emt 0:00:00] [#]} (18. b5 $17 Qa5 19. Qd2) 18... Nb3+ {[%emt 0:02:05] White got outplayed after the opening.   Weighted Error Value: White=0.72/Black=0.07 (flawless) .  Loses game:     	White=1     	---        Mistake:       	White=2     	Black=1      Inaccurate:     	White=2     	Black=1      OK:         	White=1     	Black=3      Strong:       	---       	Black=2} 0-1

[Event "Czech Extraliga 2024-25"]
[Site "Czechia"]
[Date "2024.11.03"]
[Round "2.4"]
[White "Ludvik, Tomas"]
[Black "Plat, Vojtech"]
[Result "0-1"]
[ECO "D83"]
[WhiteElo "2197"]
[BlackElo "2464"]
[Annotator "TA"]
[PlyCount "58"]
[EventDate "2024.09.12"]
[EventType "team-tourn"]
[EventCountry "CZE"]
[SourceTitle "playchess.com"]
[Source "ChessBase"]
[SourceQuality "1"]
[TimeControl "40/5400+30:1800+30"]

{[%evp 15,58,27,38,-30,-35,-36,-36,-100,-87,-100,-39,-130,-133,-175,-173,-182,-173,-168,-173,-228,-232,-245,-225,-242,-241,-235,-236,-243,-226,-247,-254,-233,-242,-277,-272,-264,-249,-358,-302,-389,-236,-340,-332,-311,-288]} 1. d4 {[%emt 0:00:06]} Nf6 {[%emt 0:00:10]} 2. c4 {[%emt 0:00:05]} g6 {[%emt 0:00:06]} 3. Nc3 {[%emt 0:00:05]} d5 {[%emt 0:00:04]} 4. Bf4 {[%emt 0:01:33]} Bg7 {[%emt 0:00:05]} 5. e3 {[%emt 0:00:04]} O-O {[%emt 0:02:15]} 6. Rc1 {[%emt 0:00:15]} c5 {[%emt 0:02:22]} 7. dxc5 {[%emt 0:00:13]} Be6 {[%emt 0:00:18]} 8. Nf3 {[%emt 0:00:31]} Nc6 {[%emt 0:02:08]} 9. Nd4 {[%emt 0:05:05]} (9. Be2 $14) 9... Nxd4 $11 {[%emt 0:03:53]} 10. exd4 {[%emt 0:00:18]} dxc4 {[%emt 0:00:07]} 11. Be5 {[%emt 0:06:49]} (11. Be2 $15) 11... Bh6 $17 {[%emt 0:02:21]} 12. Ra1 {[%emt 0:17:35]} Ng4 {[%emt 0:02:02]} (12... b5 $17 {Strongly threatening ...b4.} 13. Be2 b4) 13. Bg3 {[%emt 0:00:58] Black keeps a firm grip on the game.} (13. Bxc4 $1 $15 Bxc4 14. Qxg4) 13... Bg7 {[%emt 0:00:55] Black is more active.} 14. h3 {[%emt 0:07:54]} Nh6 {[%emt 0:00:30]} 15. Be5 {[%emt 0:06:22]} Bxe5 {[%emt 0:07:06]} 16. dxe5 {[%emt 0:00:02] [#]} Qc7 $1 {[%emt 0:00:32][%csl LRc5,LRe5][%cal Oh6f5]} 17. Qd4 {[%emt 0:03:55]} (17. g4 $142) 17... Nf5 $19 {[%emt 0:00:18]} 18. Qf4 {[%emt 0:00:32]} Rfd8 {[%emt 0:00:40]} 19. Be2 {[%emt 0:06:09]} Rd4 {[%emt 0:04:51]} 20. Qh2 {[%emt 0:01:13]} Qxc5 {[%emt 0:00:05]} 21. O-O {[%emt 0:00:23]} Rad8 {[%emt 0:00:15]} 22. g4 {[%emt 0:06:57]} Nh4 {[%emt 0:00:49][%cal Od4d3]} 23. Qg3 {[%emt 0:00:13]} g5 {[%emt 0:00:06]} 24. Rad1 {[%emt 0:00:14] Repels Rd3} Rxd1 {[%emt 0:00:47]} 25. Rxd1 {[%emt 0:00:09]} Rxd1+ {[%emt 0:00:04]} 26. Bxd1 {[%emt 0:00:43]} (26. Nxd1 {was the only defense.} Ng6 27. Bf1) 26... Ng6 {[%emt 0:00:16][%cal Oc5b4]} 27. Bc2 {[%emt 0:00:59]} Qxe5 {[%emt 0:01:18]} ({Less strong is} 27... Nxe5 28. Ne4 Qd4 29. Qc3 $19) 28. Bxg6 {[%emt 0:00:52]} (28. Qxe5 {keeps fighting.} Nxe5 29. Kg2) 28... Qxg3+ {[%emt 0:00:10]} 29. fxg3 {[%emt 0:00:04]} hxg6 {[%emt 0:00:03] Weighted Error Value: White=0.41/Black=0.15 (very precise) .  Mistake:       	White=5     	Black=1      Inaccurate:     	White=1     	Black=1      OK:         	White=6     	Black=14     Best:        	---       	Black=3} 0-1

[Event "Czech Extraliga 2024-25"]
[Site "Czechia"]
[Date "2024.11.03"]
[Round "2.5"]
[White "Jaracz, Pawel"]
[Black "Nemec, Jachym"]
[Result "0-1"]
[ECO "B12"]
[WhiteElo "2473"]
[BlackElo "2411"]
[Annotator "TA"]
[PlyCount "70"]
[EventDate "2024.09.12"]
[EventType "team-tourn"]
[EventCountry "CZE"]
[SourceTitle "playchess.com"]
[Source "ChessBase"]
[SourceQuality "1"]
[TimeControl "40/5400+30:1800+30"]

{[%evp 9,70,16,27,23,29,25,28,16,42,33,33,18,22,-2,0,-17,-16,-18,-17,-43,-38,-33,-44,-53,-44,-59,-45,-50,-46,-54,-49,-52,-49,-75,-70,-78,-79,-104,-109,-116,-117,-127,-121,-183,-185,-187,-180,-303,-303,-456,-477,-535,-527,-693,-442,-469,-464,-455,-436,-412,-396,-358,-348]} 1. e4 {[%emt 0:00:08]} c6 {[%emt 0:00:12]} 2. d4 {[%emt 0:00:14]} d5 {[%emt 0:00:04]} 3. e5 {[%emt 0:00:42]} Bf5 {[%emt 0:00:06]} 4. Nf3 {[%emt 0:03:13]} e6 {[%emt 0:00:15]} 5. Be2 {[%emt 0:00:06]} a6 {[%emt 0:00:09]} 6. O-O {[%emt 0:00:34]} Bg6 {[%emt 0:00:11]} 7. c3 {[%emt 0:12:44]} c5 {[%emt 0:00:43]} 8. Be3 {[%emt 0:01:23] White has an edge.} Nd7 {[%emt 0:00:34]} 9. Nbd2 {[%emt 0:00:55]} Nh6 {[%emt 0:11:02]} 10. dxc5 {[%emt 0:08:24]} Bxc5 {[%emt 0:09:18]} 11. Bf4 {[%emt 0:07:41]} Nf5 {[%emt 0:02:45]} 12. Nb3 {[%emt 0:00:45]} Ba7 {[%emt 0:00:45]} 13. Bd3 {[%emt 0:10:36]} O-O {[%emt 0:01:41]} 14. Bxf5 {[%emt 0:14:17]} Bxf5 {[%emt 0:00:10]} 15. Nfd4 {[%emt 0:00:05]} Bg6 {[%emt 0:00:36]} 16. Qg4 {[%emt 0:00:07]} Nb6 {[%emt 0:09:02]} 17. Rae1 {[%emt 0:06:12]} Nc4 {[%emt 0:00:28]} 18. Re2 {[%emt 0:00:46]} Qd7 {[%emt 0:02:59]} 19. Nc1 {[%emt 0:02:24] Wards off Bd3} Rac8 {[%emt 0:03:16]} 20. h4 {[%emt 0:00:15]} h5 {[%emt 0:04:28]} 21. Qg3 {[%emt 0:00:37]} Bxd4 {[%emt 0:00:15]} 22. cxd4 {[%emt 0:00:04] White is weak on the light squares} Qb5 {[%emt 0:00:04]} 23. a4 {[%emt 0:08:37]} Qb4 {[%emt 0:04:23]} (23... Qxa4 24. b3 Qc6 25. bxc4 dxc4 26. Qc3 $14) 24. b3 {[%emt 0:00:56]} Na3 {[%emt 0:01:10][%cal Oa3c2]} 25. Rd1 {[%emt 0:02:05]} Rc6 {[%emt 0:09:34] Black is more active.} 26. Qg5 {[%emt 0:00:40] [#]} (26. Na2 $17 Qb6 27. Bc1) 26... Nb1 $1 $19 {[%emt 0:05:56]} 27. Kh2 {[%emt 0:00:10]} Qb6 {[%emt 0:03:56]} 28. g4 {[%emt 0:05:53]} (28. Rg1 $142) 28... Nc3 {[%emt 0:01:54][%csl LRd1,LRe2]} 29. gxh5 {[%emt 0:00:55]} (29. Rde1 {keeps fighting.} Nxe2 (29... Qxd4 $2 30. Rd2 $19) 30. Nxe2) 29... Nxd1 {[%emt 0:01:25]} (29... Nxe2 30. Nxe2 Qxb3 31. Rd2 $17) 30. hxg6 {[%emt 0:00:03]} fxg6 {[%emt 0:00:41]} (30... Qxd4 $2 31. Rd2 Qe4 (31... f6 32. exf6 Qxf6 33. Qxf6 $17) 32. Rxd1 fxg6 33. Bg3 $19) 31. Be3 {[%emt 0:03:46]} Nxe3 {[%emt 0:02:28]} 32. Qxe3 {[%emt 0:00:04]} Qd8 {[%emt 0:00:34]} 33. Kg3 {[%emt 0:00:14]} Qe7 {[%emt 0:01:30]} 34. Ra2 {[%emt 0:01:56]} Qf7 {[%emt 0:02:10][%cal Oc6c1] [#] White must now prevent ...Rxc1!} 35. Ne2 {[%emt 0:00:07]} Qf5 {[%emt 0:00:30] Weighted Error Value: White=0.27 (precise) /Black=0.15 (very precise) .  Mistake:       	White=3     	---        Inaccurate:     	White=3     	Black=1      OK:         	White=9     	Black=12     Best:        	---       	Black=3} 0-1

[Event "Czech Extraliga 2024-25"]
[Site "Czechia"]
[Date "2024.11.03"]
[Round "2.5"]
[White "Kraus, Tomas"]
[Black "Jirasek, Pavel"]
[Result "1/2-1/2"]
[ECO "D04"]
[WhiteElo "2457"]
[BlackElo "2268"]
[Annotator "TA"]
[PlyCount "46"]
[EventDate "2024.09.12"]
[EventType "team-tourn"]
[EventCountry "CZE"]
[SourceTitle "playchess.com"]
[Source "ChessBase"]
[SourceQuality "1"]
[TimeControl "40/5400+30:1800+30"]

{[%evp 9,46,-7,-5,-25,-22,-21,-14,-23,-28,-31,-35,-31,-39,-31,0,-10,-12,-23,-32,-26,42,0,70,-22,25,18,9,19,31,-46,0,0,0,0,0,-45,3,-12,3]} 1. Nf3 {[%emt 0:00:23]} Nf6 {[%emt 0:00:14]} 2. e3 {[%emt 0:01:44]} c5 {[%emt 0:01:27]} 3. d4 {[%emt 0:00:35]} d5 {[%emt 0:00:20]} 4. dxc5 {[%emt 0:01:09]} e6 {[%emt 0:01:11]} 5. b4 {[%emt 0:01:00]} a5 {[%emt 0:00:09]} 6. c3 {[%emt 0:00:24]} axb4 {[%emt 0:00:09]} 7. cxb4 {[%emt 0:00:08]} b6 $1 {[%emt 0:00:12]} 8. Bb5+ {[%emt 0:01:26]} Bd7 {[%emt 0:00:24]} 9. Bxd7+ {[%emt 0:00:07]} Nbxd7 {[%emt 0:00:16]} 10. a4 {[%emt 0:00:32]} bxc5 {[%emt 0:00:05]} 11. b5 {[%emt 0:00:05]} Bd6 {[%emt 0:00:15]} 12. O-O {[%emt 0:03:14]} Qc7 {[%emt 0:00:07]} 13. Bb2 {[%emt 0:06:25] [#]} g5 $1 {[%emt 0:05:41] And now ...g4 would win.} 14. g3 {[%emt 0:06:20]} (14. Nxg5 Bxh2+ 15. Kh1 Bd6 $11) 14... Rg8 {[%emt 0:15:31]} ({Black should play} 14... g4 $1 $11 15. Nh4 Be5) 15. Nbd2 {[%emt 0:09:00]} h5 {[%emt 0:03:12]} (15... g4 $11 16. Nh4 c4) 16. Qe2 {[%emt 0:04:15]} (16. e4 $14) 16... h4 {[%emt 0:04:49]} (16... g4 $142 17. Nh4 Be5 18. Bxe5 Qxe5) 17. Bxf6 $11 {[%emt 0:10:53]} Nxf6 {[%emt 0:00:31]} 18. e4 {[%emt 0:00:05] [#] aiming for e5.} hxg3 {[%emt 0:03:33]} 19. e5 {[%emt 0:07:01]} (19. hxg3 $14 g4 20. Nh2) 19... gxh2+ {[%emt 0:00:04]} (19... g4 $1 $15 20. fxg3 (20. exd6 gxf3 $11) 20... gxf3 21. Nxf3 (21. exd6 $2 {too greedy.} fxe2 22. dxc7 exf1=N $19) 21... Be7 22. exf6 Bxf6) 20. Kh1 $1 {[%emt 0:00:32]} Be7 {[%emt 0:04:33]} 21. exf6 {[%emt 0:02:28]} Bxf6 {[%emt 0:00:06] Threatens to win with ...g4.} 22. Ra3 {[%emt 0:06:46][%cal Of1e1]} c4 {[%emt 0:07:00]} (22... g4 $15 {deserves consideration.} 23. Nxh2 Rh8) 23. Re1 {[%emt 0:03:24][%cal Of3e5]} ({Don't play} 23. Nxh2 Rh8 24. f4 gxf4 $17) 23... Qd6 {[%emt 0:08:28] Weighted Error Value: White=0.24 (precise) /Black=0.24 (precise) .  Mistake:       	White=2     	Black=5      Inaccurate:     	White=2     	---        OK:         	White=7     	Black=4      Best:        	---       	Black=2      Strong:       	White=1     	Black=1} 1/2-1/2

[Event "Czech Extraliga 2024-25"]
[Site "Czechia"]
[Date "2024.11.03"]
[Round "2.5"]
[White "Zwardon, Vojtech"]
[Black "Zilka, Stepan"]
[Result "0-1"]
[ECO "A13"]
[WhiteElo "2446"]
[BlackElo "2539"]
[Annotator "TA"]
[PlyCount "110"]
[EventDate "2024.09.12"]
[EventType "team-tourn"]
[EventCountry "CZE"]
[SourceTitle "playchess.com"]
[Source "ChessBase"]
[SourceQuality "1"]
[TimeControl "40/5400+30:1800+30"]

{[%evp 25,110,0,0,0,2,-7,-4,-19,0,0,0,0,0,0,0,-4,0,0,0,0,0,-18,-18,-16,-14,-18,-33,-18,16,22,20,12,0,-57,-57,-72,-73,-242,-243,-233,-246,-237,-231,-242,-257,-245,-243,-305,-305,-305,-300,-341,-337,-352,-340,-516,-514,-490,-490,-526,-511,-715,-700,-662,-650,-650,-650,-588,-585,-775,-775,-735,-627,-636,-627,-2742,-2547,-2009,-2525,-2581,-1995,-4137,-4137,-4137,-4137,-4137,-4137]} 1. c4 {[%emt 0:00:01]} e6 {[%emt 0:00:11]} 2. Nf3 {[%emt 0:00:02]} d5 {[%emt 0:00:09]} 3. e3 {[%emt 0:00:01]} Nf6 {[%emt 0:00:11]} 4. b3 {[%emt 0:00:03]} c5 {[%emt 0:00:26]} 5. Bb2 {[%emt 0:00:01]} Nc6 {[%emt 0:00:24]} 6. cxd5 {[%emt 0:00:02]} exd5 {[%emt 0:00:09]} 7. Bb5 {[%emt 0:00:02]} Bd6 {[%emt 0:00:24]} 8. d4 {[%emt 0:01:43] A13: English Opening: 1...e6.} cxd4 {[%emt 0:00:34]} 9. Nxd4 {[%emt 0:08:14]} Bd7 {[%emt 0:01:43]} 10. Nc3 {[%emt 0:01:43]} O-O {[%emt 0:01:59]} 11. O-O {[%emt 0:03:06]} Re8 {[%emt 0:01:29]} 12. Nf3 {[%emt 0:02:18]} a6 {[%emt 0:14:54]} 13. Be2 {[%emt 0:07:04]} (13. Nxd5 $2 Nxd5 $19) 13... Bf5 {[%emt 0:04:10]} 14. Rc1 {[%emt 0:02:49]} Rc8 {[%emt 0:02:35]} 15. g3 {[%emt 0:09:50]} Bb8 {[%emt 0:09:35]} 16. Na4 {[%emt 0:00:47]} Bh3 {[%emt 0:05:07]} 17. Re1 {[%emt 0:01:01]} Ne4 {[%emt 0:01:03]} 18. Nc5 $146 {[%emt 0:02:50]} ({Predecessor:} 18. Nc3 Ba7 19. Bf1 Bg4 20. Bg2 Nxf2 21. Kxf2 d4 22. Nb1 dxe3+ 23. Kf1 e2+ 24. Rxe2 Qb6 25. Rxc6 Qxc6 26. Nc3 Rxe2 27. Qxe2 Re8 28. Qd3 Qb6 29. Ne4 Rxe4 {0-1 Izoria,Z (2450)-Colin,V (2294) EU-ch U20 Aviles 2000 (4)}) 18... Ba7 {[%emt 0:01:28]} 19. Nxe4 {[%emt 0:03:38]} dxe4 {[%emt 0:02:04]} 20. Qxd8 {[%emt 0:01:13]} Rcxd8 {[%emt 0:19:03]} 21. Ng5 {[%emt 0:00:43]} Bf5 $1 {[%emt 0:00:03]} 22. g4 {[%emt 0:17:37]} Bc8 {[%emt 0:00:01]} 23. Bc4 {[%emt 0:00:18]} Rd7 $1 {[%emt 0:00:03]} 24. Red1 {[%emt 0:19:41]} Rc7 $1 {[%emt 0:00:00]} 25. Be2 $1 {[%emt 0:00:11]} h6 {[%emt 0:01:44]} 26. Nh3 {[%emt 0:05:06]} h5 {[%emt 0:00:52]} 27. Nf4 {[%emt 0:00:08]} Bxg4 {[%emt 0:00:51]} 28. Bxg4 {[%emt 0:00:13]} (28. Nd5 Rcc8 29. Bxg4 hxg4 $17) 28... hxg4 {[%emt 0:00:04]} 29. Rd5 {[%emt 0:01:51]} (29. Nh5 $11 f6 (29... f5 30. Nxg7 Rxg7 31. Bxg7 $18) 30. Bxf6 gxf6 31. Nxf6+ Kf7 32. Nxe8 Kxe8 33. Rd5) 29... f6 $15 {[%emt 0:01:16]} 30. Kg2 {[%emt 0:00:36]} Bb8 {[%emt 0:03:03]} 31. Kg3 $2 {[%emt 0:01:22] [#]} (31. Nh5 $17 Rd8 32. Rxd8+ Nxd8 33. Rxc7 Bxc7 34. Bxf6 gxf6 35. Nxf6+ Kf7 36. Nxe4) 31... g5 $1 $19 {[%emt 0:06:40]} 32. Nh5 {[%emt 0:05:34]} Ne7 {[%emt 0:00:18]} 33. Nxf6+ {[%emt 0:03:29]} Kf7 {[%emt 0:00:01]} 34. Rxc7 {[%emt 0:01:49]} Bxc7+ {[%emt 0:00:01]} 35. Kxg4 {[%emt 0:00:11]} Nxd5 {[%emt 0:00:17]} 36. Nxe8 {[%emt 0:01:18]} Kxe8 {[%emt 0:00:22]} 37. Kxg5 {[%emt 0:00:03]} Nb4 {[%emt 0:10:07]} 38. h4 {[%emt 0:00:07]} Bd8+ {[%emt 0:00:28]} (38... Nxa2 $2 {loses.} 39. h5 $18) 39. Kg4 {[%emt 0:02:31]} Nd3 {[%emt 0:00:39]} ({Less strong is} 39... Nxa2 40. h5 Kf7 41. Kf5 $17) 40. Bd4 {[%emt 0:00:30]} (40. Bc3 {was the only chance.} Nxf2+ 41. Kg3) 40... Nxf2+ $19 {[%emt 0:02:24]} 41. Kg3 {[%emt 0:30:02]} Nd3 {[%emt 0:35:13]} 42. h5 {[%emt 0:00:09]} Kf7 {[%emt 0:00:17]} 43. Kg4 {[%emt 0:00:00]} Bf6 {[%emt 0:00:00]} 44. Bb6 {[%emt 0:00:00]} Nc1 {[%emt 0:00:00]} 45. Kf5 {[%emt 0:00:00]} Nxa2 {[%emt 0:00:00]} 46. Kxe4 {[%emt 0:00:00]} Nc1 {[%emt 0:00:00]} 47. Kd5 {[%emt 0:00:00]} Nxb3 {[%emt 0:00:00]} 48. e4 {[%emt 0:00:00]} Nd2 {[%emt 0:00:00]} 49. Ba5 {[%emt 0:00:00]} Nf3 {[%emt 0:00:00]} 50. Kd6 {[%emt 0:00:00]} Ne5 {[%emt 0:00:00]} 51. Kd5 {[%emt 0:00:00]} Nc6 {[%emt 0:00:00]} 52. Bd2 {[%emt 0:00:00]} a5 {[%emt 0:00:00]} 53. Kc4 {[%emt 0:00:00]} a4 {[%emt 0:00:00]} 54. Bc1 {[%emt 0:00:00]} Nd4 {[%emt 0:00:00]} 55. Kd5 {[%emt 0:00:00]} Ne2 {[%emt 0:00:00]} 0-1